[Event "Early-Titled-Tuesday-Blitz-March-19-2024"]
[Site "Chess.com"]
[Date "2024.03.19"]
[Round "6"]
[White "ImportedItalianMaple"]
[Black "rikchessmx"]
[Result "1-0"]
[WhiteElo "2521"]
[BlackElo "2283"]
[TimeControl "180+1"]
[EndTime "9:04:12 PDT"]
[Termination "ImportedItalianMaple won by resignation"]

1. Nf3 {[%clk 0:02:58.1]} 1... g6 {[%clk 0:02:59.2]} 2. e4 {[%clk 0:02:57.3]}
2... Bg7 {[%clk 0:02:59.7]} 3. d4 {[%clk 0:02:57.9]} 3... d6 {[%clk 0:02:59.8]}
4. Bd3 {[%clk 0:02:57]} 4... c6 {[%clk 0:03:00.2]} 5. c3 {[%clk 0:02:54.6]} 5...
Nf6 {[%clk 0:02:58.8]} 6. O-O {[%clk 0:02:54.4]} 6... Bg4 {[%clk 0:02:57.2]} 7.
Nbd2 {[%clk 0:02:54.2]} 7... Qc7 {[%clk 0:02:55.6]} 8. h3 {[%clk 0:02:54.3]}
8... Bc8 {[%clk 0:02:55.2]} 9. Re1 {[%clk 0:02:54.1]} 9... Nbd7 {[%clk
0:02:54.4]} 10. Nf1 {[%clk 0:02:50.9]} 10... e5 {[%clk 0:02:53.8]} 11. Ng3
{[%clk 0:02:50.1]} 11... O-O {[%clk 0:02:53.3]} 12. a4 {[%clk 0:02:46.8]} 12...
Re8 {[%clk 0:02:51]} 13. a5 {[%clk 0:02:46.1]} 13... Rb8 {[%clk 0:02:49.2]} 14.
b4 {[%clk 0:02:32.2]} 14... Nf8 {[%clk 0:02:45.5]} 15. Be3 {[%clk 0:02:25.3]}
15... exd4 {[%clk 0:02:40.8]} 16. cxd4 {[%clk 0:02:24.5]} 16... Qe7 {[%clk
0:02:33.1]} 17. Bg5 {[%clk 0:02:07.2]} 17... h6 {[%clk 0:02:30.6]} 18. e5 {[%clk
0:02:07.8]} 18... dxe5 {[%clk 0:02:08.9]} 19. dxe5 {[%clk 0:02:07.3]} 19... Qxb4
{[%clk 0:01:56.7]} 20. Bxf6 {[%clk 0:02:02.8]} 20... Bxf6 {[%clk 0:01:48.6]} 21.
exf6 {[%clk 0:02:03.7]} 21... Rxe1+ {[%clk 0:01:48]} 22. Qxe1 {[%clk 0:02:03.7]}
22... Qxe1+ {[%clk 0:01:45.4]} 23. Rxe1 {[%clk 0:02:04.6]} 23... Ne6 {[%clk
0:01:44.3]} 24. Ne5 {[%clk 0:01:52.3]} 24... Kf8 {[%clk 0:01:36.1]} 25. Bc4
{[%clk 0:01:44.5]} 25... Nd8 {[%clk 0:01:34.1]} 26. Ne4 {[%clk 0:01:41.4]} 26...
b5 {[%clk 0:01:31.5]} 27. axb6 {[%clk 0:01:38.8]} 27... axb6 {[%clk 0:01:31.3]}
28. Nd6 {[%clk 0:01:39.1]} 28... Be6 {[%clk 0:01:25.6]} 29. Bxe6 {[%clk
0:01:37]} 29... Nxe6 {[%clk 0:01:24.1]} 30. Nd7+ {[%clk 0:01:31.1]} 1-0

[Event "Early-Titled-Tuesday-Blitz-March-19-2024"]
[Site "Chess.com"]
[Date "2024.03.19"]
[Round "6"]
[White "bulletteemo"]
[Black "MarcoRiehle"]
[Result "1-0"]
[WhiteElo "2602"]
[BlackElo "2788"]
[TimeControl "180+1"]
[EndTime "9:04:16 PDT"]
[Termination "bulletteemo won by checkmate"]

1. e4 {[%clk 0:02:56.1]} 1... e5 {[%clk 0:02:59]} 2. Nf3 {[%clk 0:02:55.9]} 2...
Nf6 {[%clk 0:02:58.6]} 3. Nxe5 {[%clk 0:02:48.7]} 3... Nxe4 {[%clk 0:02:57.6]}
4. Qe2 {[%clk 0:02:47.4]} 4... Qe7 {[%clk 0:02:56.6]} 5. Qxe4 {[%clk 0:02:47.4]}
5... d6 {[%clk 0:02:56.8]} 6. d4 {[%clk 0:02:47]} 6... dxe5 {[%clk 0:02:57.2]}
7. dxe5 {[%clk 0:02:45.8]} 7... Nc6 {[%clk 0:02:57.6]} 8. Nc3 {[%clk 0:02:31.6]}
8... Qxe5 {[%clk 0:02:56.3]} 9. Qxe5+ {[%clk 0:02:29.9]} 9... Nxe5 {[%clk
0:02:57.2]} 10. Bf4 {[%clk 0:02:29.3]} 10... f5 {[%clk 0:02:55.9]} 11. Bxe5
{[%clk 0:02:26.6]} 11... Bd7 {[%clk 0:02:53.2]} 12. Bxc7 {[%clk 0:02:24.7]}
12... Bc5 {[%clk 0:02:49.5]} 13. Bc4 {[%clk 0:02:05.9]} 13... Rc8 {[%clk
0:02:48.1]} 14. Be5 {[%clk 0:02:05.7]} 14... Bb4 {[%clk 0:02:46.5]} 15. Bb3
{[%clk 0:02:01.6]} 15... Kd8 {[%clk 0:02:43.8]} 16. O-O-O {[%clk 0:01:57.4]}
16... Re8 {[%clk 0:02:42.9]} 17. Bxg7 {[%clk 0:01:53.9]} 17... Bc5 {[%clk
0:02:41.4]} 18. Ba4 {[%clk 0:01:46.6]} 18... Rc7 {[%clk 0:02:41.4]} 19. Rd5
{[%clk 0:01:25.7]} 19... Kc8 {[%clk 0:01:36.3]} 20. Bxd7+ {[%clk 0:01:24.6]}
20... Rxd7 {[%clk 0:01:37.2]} 21. Rxc5+ {[%clk 0:01:24.6]} 21... Kb8 {[%clk
0:01:37.3]} 22. Be5+ {[%clk 0:01:22.9]} 22... Ka8 {[%clk 0:01:37.5]} 23. Rd1
{[%clk 0:01:21.3]} 23... Rde7 {[%clk 0:01:37]} 24. f4 {[%clk 0:01:20.9]} 24...
b6 {[%clk 0:01:34.2]} 25. Rcd5 {[%clk 0:01:19.8]} 25... a6 {[%clk 0:01:34.6]}
26. Rd7 {[%clk 0:01:19.8]} 26... h5 {[%clk 0:01:31.2]} 27. R1d6 {[%clk
0:01:20.1]} 27... h4 {[%clk 0:01:30.4]} 28. Nd5 {[%clk 0:01:20.3]} 28... Rxd7
{[%clk 0:01:29.4]} 29. Rxd7 {[%clk 0:01:20.4]} 29... a5 {[%clk 0:01:28.6]} 30.
Nxb6# {[%clk 0:01:20.5]} 1-0

[Event "Early-Titled-Tuesday-Blitz-March-19-2024"]
[Site "Chess.com"]
[Date "2024.03.19"]
[Round "6"]
[White "JonaszBaum"]
[Black "Shield12"]
[Result "0-1"]
[WhiteElo "2733"]
[BlackElo "2946"]
[TimeControl "180+1"]
[EndTime "9:04:19 PDT"]
[Termination "Shield12 won by resignation"]

1. d4 {[%clk 0:03:00.9]} 1... Nf6 {[%clk 0:02:59.8]} 2. c4 {[%clk 0:03:00.9]}
2... e6 {[%clk 0:02:59.8]} 3. Nc3 {[%clk 0:03:01]} 3... Bb4 {[%clk 0:02:59.1]}
4. g3 {[%clk 0:03:01.3]} 4... d5 {[%clk 0:02:58.7]} 5. Bg2 {[%clk 0:03:01.5]}
5... O-O {[%clk 0:02:57.9]} 6. Nf3 {[%clk 0:03:01.9]} 6... dxc4 {[%clk
0:02:58.4]} 7. O-O {[%clk 0:03:01.5]} 7... Nc6 {[%clk 0:02:58.1]} 8. Qa4 {[%clk
0:03:02]} 8... Nd5 {[%clk 0:02:50.7]} 9. Qc2 {[%clk 0:03:01.4]} 9... Be7 {[%clk
0:02:49.5]} 10. Rd1 {[%clk 0:03:00.5]} 10... Rb8 {[%clk 0:02:47.2]} 11. e4
{[%clk 0:03:00.1]} 11... Ndb4 {[%clk 0:02:45.8]} 12. Qe2 {[%clk 0:02:57.8]}
12... Nd3 {[%clk 0:02:46.1]} 13. b3 {[%clk 0:02:56.8]} 13... Nxd4 {[%clk
0:02:42.8]} 14. Nxd4 {[%clk 0:02:42.9]} 14... Qxd4 {[%clk 0:02:43.7]} 15. Bb2
{[%clk 0:02:26.7]} 15... Bc5 {[%clk 0:02:41.1]} 16. Na4 {[%clk 0:01:31.6]} 16...
Qxf2+ {[%clk 0:02:39.6]} 17. Qxf2 {[%clk 0:01:31.9]} 17... Bxf2+ {[%clk
0:02:40.5]} 18. Kf1 {[%clk 0:01:29.9]} 18... b5 {[%clk 0:02:41.4]} 19. Ba3
{[%clk 0:01:15.2]} 19... b4 {[%clk 0:02:34.6]} 20. Bc1 {[%clk 0:00:58.3]} 20...
Bd4 {[%clk 0:02:29.5]} 21. Rb1 {[%clk 0:00:52.5]} 21... Ba6 {[%clk 0:02:29.4]}
22. Rxd3 {[%clk 0:00:21.6]} 22... cxd3 {[%clk 0:02:27.6]} 23. Bd2 {[%clk
0:00:22.5]} 23... Bb5 {[%clk 0:02:23.3]} 24. Nb2 {[%clk 0:00:22.5]} 24... Bxb2
{[%clk 0:02:20.9]} 25. Rxb2 {[%clk 0:00:23.4]} 25... c5 {[%clk 0:02:21.5]} 26.
Be3 {[%clk 0:00:20.5]} 0-1

[Event "Early-Titled-Tuesday-Blitz-March-19-2024"]
[Site "Chess.com"]
[Date "2024.03.19"]
[Round "6"]
[White "Viktor_Poddubnyi"]
[Black "ChristianArca"]
[Result "0-1"]
[WhiteElo "2300"]
[BlackElo "2684"]
[TimeControl "180+1"]
[EndTime "9:04:31 PDT"]
[Termination "ChristianArca won by resignation"]

1. e4 {[%clk 0:03:00.9]} 1... c6 {[%clk 0:02:56]} 2. d4 {[%clk 0:03:00.3]} 2...
d5 {[%clk 0:02:56.8]} 3. exd5 {[%clk 0:03:01.2]} 3... cxd5 {[%clk 0:02:57.7]} 4.
c4 {[%clk 0:03:02]} 4... Nf6 {[%clk 0:02:58.2]} 5. Nc3 {[%clk 0:03:02.6]} 5...
g6 {[%clk 0:02:59]} 6. Qb3 {[%clk 0:03:02.5]} 6... Bg7 {[%clk 0:02:59.5]} 7.
cxd5 {[%clk 0:03:03.1]} 7... O-O {[%clk 0:02:54.2]} 8. Be2 {[%clk 0:03:03.7]}
8... Nbd7 {[%clk 0:02:43.6]} 9. Bf3 {[%clk 0:03:04]} 9... Nb6 {[%clk 0:02:43.4]}
10. Nge2 {[%clk 0:03:04.7]} 10... e6 {[%clk 0:02:43.9]} 11. dxe6 {[%clk
0:03:03.4]} 11... Bxe6 {[%clk 0:02:44.8]} 12. Qd1 {[%clk 0:03:03.5]} 12... Nfd5
{[%clk 0:02:41]} 13. O-O {[%clk 0:03:03.5]} 13... Rc8 {[%clk 0:02:40.7]} 14. Re1
{[%clk 0:02:49.1]} 14... Nc4 {[%clk 0:02:33.7]} 15. b3 {[%clk 0:02:38.7]} 15...
Nxc3 {[%clk 0:02:30.7]} 16. Nxc3 {[%clk 0:02:38.2]} 16... Qxd4 {[%clk
0:02:31.4]} 17. bxc4 {[%clk 0:02:16.6]} 17... Qxd1 {[%clk 0:02:11.4]} 18. Rxd1
{[%clk 0:02:07.4]} 18... Bxc3 {[%clk 0:02:05.5]} 19. Rb1 {[%clk 0:02:07.6]}
19... b6 {[%clk 0:02:05.8]} 20. Bd5 {[%clk 0:02:06.6]} 20... Bf5 {[%clk
0:02:01.3]} 21. Rb5 {[%clk 0:01:58.1]} 21... Bc2 {[%clk 0:01:53.5]} 22. Bd2
{[%clk 0:01:38.9]} 22... Bxd1 {[%clk 0:01:48.5]} 23. Bxc3 {[%clk 0:01:39.4]}
23... Be2 {[%clk 0:01:49.1]} 24. Rb4 {[%clk 0:01:32.1]} 24... Rfd8 {[%clk
0:01:45.6]} 0-1

[Event "Early-Titled-Tuesday-Blitz-March-19-2024"]
[Site "Chess.com"]
[Date "2024.03.19"]
[Round "6"]
[White "js20000"]
[Black "maciek_92"]
[Result "1-0"]
[WhiteElo "2803"]
[BlackElo "2887"]
[TimeControl "180+1"]
[EndTime "9:04:39 PDT"]
[Termination "js20000 won by resignation"]

1. c3 {[%clk 0:03:00.9]} 1... Nf6 {[%clk 0:02:58.1]} 2. d4 {[%clk 0:03:00.3]}
2... d6 {[%clk 0:02:58.4]} 3. Bg5 {[%clk 0:02:56.9]} 3... Nbd7 {[%clk
0:02:57.3]} 4. Nd2 {[%clk 0:02:56.4]} 4... h6 {[%clk 0:02:56.4]} 5. Bh4 {[%clk
0:02:54.9]} 5... g5 {[%clk 0:02:56]} 6. Bg3 {[%clk 0:02:54.9]} 6... Bg7 {[%clk
0:02:53.2]} 7. e4 {[%clk 0:02:54.7]} 7... c5 {[%clk 0:02:51.5]} 8. Bd3 {[%clk
0:02:54.1]} 8... cxd4 {[%clk 0:02:38.7]} 9. cxd4 {[%clk 0:02:55]} 9... Nb6
{[%clk 0:02:38.9]} 10. Ne2 {[%clk 0:02:49]} 10... Be6 {[%clk 0:02:25.4]} 11. Nc3
{[%clk 0:02:46.4]} 11... Rc8 {[%clk 0:02:24.2]} 12. h4 {[%clk 0:02:42.6]} 12...
Bg4 {[%clk 0:02:22.5]} 13. f3 {[%clk 0:02:40.1]} 13... Nh5 {[%clk 0:02:17.6]}
14. Bf2 {[%clk 0:02:38.8]} 14... Nf4 {[%clk 0:02:15.6]} 15. Bf1 {[%clk
0:02:31.1]} 15... Bd7 {[%clk 0:02:15.7]} 16. g3 {[%clk 0:02:28.6]} 16... Ne6
{[%clk 0:02:02.6]} 17. Nb3 {[%clk 0:02:26.6]} 17... gxh4 {[%clk 0:02:01.2]} 18.
Rxh4 {[%clk 0:02:26.2]} 18... Nc4 {[%clk 0:01:55.2]} 19. Bxc4 {[%clk 0:02:05.8]}
19... Rxc4 {[%clk 0:01:56.1]} 20. Qd3 {[%clk 0:02:05.9]} 20... b5 {[%clk
0:01:54.9]} 21. Rh5 {[%clk 0:01:57.5]} 21... Ng5 {[%clk 0:01:07.3]} 22. a4
{[%clk 0:01:54.6]} 22... a6 {[%clk 0:00:56.8]} 23. axb5 {[%clk 0:01:53.9]} 23...
axb5 {[%clk 0:00:57.7]} 24. Nd2 {[%clk 0:01:48.2]} 24... Rb4 {[%clk 0:00:56.2]}
25. b3 {[%clk 0:01:45.1]} 25... Bxd4 {[%clk 0:00:56.2]} 26. Bxd4 {[%clk
0:01:43.9]} 26... e5 {[%clk 0:00:55.8]} 27. Be3 {[%clk 0:01:38.8]} 27... Be6
{[%clk 0:00:46.1]} 1-0

[Event "Early-Titled-Tuesday-Blitz-March-19-2024"]
[Site "Chess.com"]
[Date "2024.03.19"]
[Round "6"]
[White "AlanZhang"]
[Black "SujanaLohani"]
[Result "1-0"]
[WhiteElo "2230"]
[BlackElo "1998"]
[TimeControl "180+1"]
[EndTime "9:04:45 PDT"]
[Termination "AlanZhang won by resignation"]

1. e4 {[%clk 0:03:00.9]} 1... c6 {[%clk 0:02:30.5]} 2. d4 {[%clk 0:03:00.3]}
2... d5 {[%clk 0:02:29.8]} 3. Nc3 {[%clk 0:03:00.8]} 3... e6 {[%clk 0:02:22.3]}
4. e5 {[%clk 0:02:50.4]} 4... f5 {[%clk 0:02:21.1]} 5. f4 {[%clk 0:02:49.8]}
5... Bb4 {[%clk 0:02:14.3]} 6. Nf3 {[%clk 0:02:47.4]} 6... Ne7 {[%clk
0:02:13.3]} 7. a3 {[%clk 0:02:46.6]} 7... Ba5 {[%clk 0:02:11.9]} 8. b4 {[%clk
0:02:45.2]} 8... Bc7 {[%clk 0:02:11.5]} 9. Bd3 {[%clk 0:02:28.8]} 9... b5 {[%clk
0:02:10]} 10. a4 {[%clk 0:02:28.6]} 10... a5 {[%clk 0:02:00.2]} 11. axb5 {[%clk
0:02:25.6]} 11... cxb5 {[%clk 0:01:59.6]} 12. Nxb5 {[%clk 0:02:22]} 12... Ba6
{[%clk 0:01:51.8]} 13. Nxc7+ {[%clk 0:02:05.1]} 13... Qxc7 {[%clk 0:01:51.6]}
14. b5 {[%clk 0:02:05.3]} 14... Bc8 {[%clk 0:01:44]} 15. O-O {[%clk 0:02:00.9]}
15... O-O {[%clk 0:01:43.9]} 16. Ba3 {[%clk 0:02:00.3]} 16... h6 {[%clk
0:01:43.1]} 17. Bd6 {[%clk 0:01:53.6]} 17... Qb7 {[%clk 0:01:41]} 18. Qd2 {[%clk
0:01:51.7]} 18... Bd7 {[%clk 0:01:34.9]} 19. Rxa5 {[%clk 0:01:46]} 19... Rxa5
{[%clk 0:01:33.5]} 20. Qxa5 {[%clk 0:01:46.6]} 20... Rc8 {[%clk 0:01:32]} 21.
Bxe7 {[%clk 0:01:44.8]} 21... Bxb5 {[%clk 0:01:30.4]} 22. Qxb5 {[%clk
0:01:44.6]} 22... Qxe7 {[%clk 0:01:29.4]} 23. Rb1 {[%clk 0:01:45]} 23... g5
{[%clk 0:01:08.1]} 24. fxg5 {[%clk 0:01:39.6]} 24... hxg5 {[%clk 0:01:07.9]} 25.
Qb7 {[%clk 0:01:38]} 25... Qd8 {[%clk 0:01:05.5]} 26. Ba6 {[%clk 0:01:28.6]}
26... g4 {[%clk 0:01:04.2]} 27. Qxc8 {[%clk 0:01:27.8]} 27... Qxc8 {[%clk
0:00:59.5]} 28. Bxc8 {[%clk 0:01:28.7]} 28... gxf3 {[%clk 0:00:59.5]} 29. Rxb8
{[%clk 0:01:26.9]} 1-0

[Event "Early-Titled-Tuesday-Blitz-March-19-2024"]
[Site "Chess.com"]
[Date "2024.03.19"]
[Round "6"]
[White "GMAneta"]
[Black "DvaHrasta"]
[Result "0-1"]
[WhiteElo "2658"]
[BlackElo "2493"]
[TimeControl "180+1"]
[EndTime "9:04:50 PDT"]
[Termination "DvaHrasta won by resignation"]

1. d4 {[%clk 0:02:59.8]} 1... Nf6 {[%clk 0:02:59.2]} 2. Nf3 {[%clk 0:03:00.1]}
2... e6 {[%clk 0:02:58.7]} 3. c4 {[%clk 0:02:58.8]} 3... d5 {[%clk 0:02:55.3]}
4. Nc3 {[%clk 0:02:58.4]} 4... Bb4 {[%clk 0:02:53]} 5. cxd5 {[%clk 0:02:56.3]}
5... exd5 {[%clk 0:02:50.5]} 6. Qa4+ {[%clk 0:02:56]} 6... Nc6 {[%clk
0:02:49.6]} 7. Bg5 {[%clk 0:02:55.7]} 7... O-O {[%clk 0:02:42.8]} 8. e3 {[%clk
0:02:55.6]} 8... h6 {[%clk 0:02:36]} 9. Bxf6 {[%clk 0:02:55.2]} 9... Qxf6 {[%clk
0:02:33.8]} 10. Be2 {[%clk 0:02:55.2]} 10... Bg4 {[%clk 0:02:17.3]} 11. O-O
{[%clk 0:02:54.5]} 11... Bxc3 {[%clk 0:02:16]} 12. bxc3 {[%clk 0:02:53.5]} 12...
Bxf3 {[%clk 0:02:15.9]} 13. Bxf3 {[%clk 0:02:50.4]} 13... Ne7 {[%clk 0:02:14.8]}
14. Qb3 {[%clk 0:02:50.4]} 14... Qc6 {[%clk 0:02:07.7]} 15. c4 {[%clk
0:02:46.6]} 15... dxc4 {[%clk 0:01:57]} 16. Bxc6 {[%clk 0:02:45.5]} 16... cxb3
{[%clk 0:01:55.9]} 17. Bxb7 {[%clk 0:02:45.7]} 17... Rab8 {[%clk 0:01:55.8]} 18.
Be4 {[%clk 0:02:43.4]} 18... b2 {[%clk 0:01:52.1]} 19. Rab1 {[%clk 0:02:43]}
19... Rb4 {[%clk 0:01:41]} 20. Bc2 {[%clk 0:02:38.6]} 20... a5 {[%clk 0:01:35]}
21. Rfd1 {[%clk 0:02:35.1]} 21... Rfb8 {[%clk 0:01:31]} 22. Rd3 {[%clk
0:02:34.4]} 22... Rc4 {[%clk 0:01:22.2]} 23. Bb3 {[%clk 0:02:28.5]} 23... Rc1+
{[%clk 0:01:19.2]} 24. Rd1 {[%clk 0:02:28.5]} 24... Rxd1+ {[%clk 0:01:14.9]} 25.
Rxd1 {[%clk 0:02:29.4]} 25... a4 {[%clk 0:01:09.7]} 26. Bc2 {[%clk 0:02:26.6]}
26... Nd5 {[%clk 0:01:09.7]} 27. g4 {[%clk 0:02:11.5]} 27... Nc3 {[%clk
0:01:08.7]} 28. Rd3 {[%clk 0:02:11.6]} 28... b1=Q+ {[%clk 0:01:04.7]} 29. Bxb1
{[%clk 0:02:11.6]} 29... Rxb1+ {[%clk 0:01:00]} 30. Kg2 {[%clk 0:02:11.7]} 30...
Nxa2 {[%clk 0:00:56.5]} 31. Ra3 {[%clk 0:02:11.4]} 31... Rb2 {[%clk 0:00:56.6]}
32. Rxa4 {[%clk 0:02:11.3]} 32... Nc3 {[%clk 0:00:56.1]} 33. Rc4 {[%clk
0:02:10.8]} 33... Ne4 {[%clk 0:00:54]} 34. Rxc7 {[%clk 0:02:09.4]} 34... Rxf2+
{[%clk 0:00:53.1]} 35. Kg1 {[%clk 0:02:09.3]} 35... Re2 {[%clk 0:00:51.7]} 36.
Rc8+ {[%clk 0:02:08]} 36... Kh7 {[%clk 0:00:51.2]} 37. Rc7 {[%clk 0:02:08.5]}
37... Kg6 {[%clk 0:00:50.4]} 38. h4 {[%clk 0:02:08.8]} 38... Rxe3 {[%clk
0:00:46.9]} 39. h5+ {[%clk 0:02:09]} 39... Kf6 {[%clk 0:00:46.6]} 40. Rc6+
{[%clk 0:02:09]} 40... Kg5 {[%clk 0:00:43.2]} 41. Rc7 {[%clk 0:02:09]} 41... Rf3
{[%clk 0:00:41.2]} 0-1

[Event "Early-Titled-Tuesday-Blitz-March-19-2024"]
[Site "Chess.com"]
[Date "2024.03.19"]
[Round "6"]
[White "GelmanAlexander"]
[Black "Eliwood44"]
[Result "0-1"]
[WhiteElo "2685"]
[BlackElo "2537"]
[TimeControl "180+1"]
[EndTime "9:04:51 PDT"]
[Termination "Eliwood44 won by resignation"]

1. d4 {[%clk 0:03:00.9]} 1... Nf6 {[%clk 0:02:55.1]} 2. Nc3 {[%clk 0:03:00.5]}
2... d5 {[%clk 0:02:51]} 3. Bf4 {[%clk 0:03:00.3]} 3... c6 {[%clk 0:02:51.5]} 4.
f3 {[%clk 0:02:59.7]} 4... Nbd7 {[%clk 0:02:50.8]} 5. g4 {[%clk 0:02:58.2]} 5...
Qb6 {[%clk 0:02:47.8]} 6. Qd2 {[%clk 0:02:57.9]} 6... e6 {[%clk 0:02:47.2]} 7.
O-O-O {[%clk 0:02:55.8]} 7... Bb4 {[%clk 0:02:46.1]} 8. e3 {[%clk 0:02:53.1]}
8... c5 {[%clk 0:02:41.2]} 9. a3 {[%clk 0:02:50.3]} 9... Bxc3 {[%clk 0:02:41.3]}
10. Qxc3 {[%clk 0:02:50.7]} 10... c4 {[%clk 0:02:41.3]} 11. h4 {[%clk
0:02:44.5]} 11... a5 {[%clk 0:02:41.2]} 12. h5 {[%clk 0:02:44.7]} 12... Qc6
{[%clk 0:02:38.1]} 13. g5 {[%clk 0:02:43.1]} 13... Ng8 {[%clk 0:02:37.8]} 14. e4
{[%clk 0:02:37.4]} 14... Ne7 {[%clk 0:02:37.2]} 15. Qe3 {[%clk 0:01:37]} 15...
b5 {[%clk 0:02:33.4]} 16. Bh3 {[%clk 0:01:37.2]} 16... b4 {[%clk 0:02:30.3]} 17.
Ne2 {[%clk 0:01:35.9]} 17... c3 {[%clk 0:02:26.8]} 18. bxc3 {[%clk 0:01:34.3]}
18... bxa3 {[%clk 0:02:24.4]} 19. Kd2 {[%clk 0:01:33]} 19... Ba6 {[%clk
0:02:23.4]} 20. g6 {[%clk 0:01:28.3]} 20... hxg6 {[%clk 0:02:19.5]} 21. hxg6
{[%clk 0:01:28.3]} 21... Nxg6 {[%clk 0:02:13.2]} 22. Bxe6 {[%clk 0:01:27]} 22...
fxe6 {[%clk 0:02:10.5]} 23. Rxh8+ {[%clk 0:01:24.8]} 23... Nxh8 {[%clk
0:02:10.5]} 24. Bg5 {[%clk 0:01:23.2]} 24... Bxe2 {[%clk 0:02:03.5]} 25. Kxe2
{[%clk 0:01:22]} 25... Nf7 {[%clk 0:02:01.9]} 26. Rh1 {[%clk 0:01:20]} 26...
dxe4 {[%clk 0:01:55.7]} 27. fxe4 {[%clk 0:01:20.1]} 27... Nxg5 {[%clk
0:01:54.6]} 28. Rh8+ {[%clk 0:01:18.1]} 28... Nf8 {[%clk 0:01:54.7]} 29. Qxg5
{[%clk 0:01:16.9]} 29... Qxe4+ {[%clk 0:01:54.8]} 30. Kd2 {[%clk 0:01:17.6]}
30... Qf5 {[%clk 0:01:45.7]} 31. Qxg7 {[%clk 0:01:16.4]} 31... a2 {[%clk
0:01:39.2]} 32. Qc7 {[%clk 0:01:11.7]} 32... Qf2+ {[%clk 0:01:33.7]} 33. Kd3
{[%clk 0:01:11.9]} 33... Qf3+ {[%clk 0:01:15.6]} 34. Kd2 {[%clk 0:01:11.6]}
34... a1=Q {[%clk 0:01:13.9]} 0-1

[Event "Early-Titled-Tuesday-Blitz-March-19-2024"]
[Site "Chess.com"]
[Date "2024.03.19"]
[Round "6"]
[White "DavidGavrilescu18"]
[Black "Lady_Nika"]
[Result "1-0"]
[WhiteElo "2782"]
[BlackElo "2578"]
[TimeControl "180+1"]
[EndTime "9:04:59 PDT"]
[Termination "DavidGavrilescu18 won by resignation"]

1. e4 {[%clk 0:03:00.9]} 1... c6 {[%clk 0:02:57.5]} 2. Nf3 {[%clk 0:02:57.5]}
2... d5 {[%clk 0:02:57.7]} 3. Nc3 {[%clk 0:02:58.4]} 3... Nf6 {[%clk 0:02:53.7]}
4. e5 {[%clk 0:02:56.8]} 4... Nfd7 {[%clk 0:02:51.1]} 5. d4 {[%clk 0:02:55.7]}
5... e6 {[%clk 0:02:51.1]} 6. Ne2 {[%clk 0:02:54.7]} 6... c5 {[%clk 0:02:51.3]}
7. c3 {[%clk 0:02:55.4]} 7... Nc6 {[%clk 0:02:51.6]} 8. Nf4 {[%clk 0:02:52.7]}
8... a6 {[%clk 0:02:51.4]} 9. Bd3 {[%clk 0:02:51.9]} 9... b5 {[%clk 0:02:51.7]}
10. O-O {[%clk 0:02:51.8]} 10... Bb7 {[%clk 0:02:52]} 11. h4 {[%clk 0:02:52]}
11... h6 {[%clk 0:02:49.8]} 12. h5 {[%clk 0:02:52.2]} 12... Qb6 {[%clk
0:02:49.6]} 13. Be3 {[%clk 0:02:52.1]} 13... c4 {[%clk 0:02:49.7]} 14. Bc2
{[%clk 0:02:51.2]} 14... a5 {[%clk 0:02:49]} 15. b3 {[%clk 0:02:50.6]} 15... Be7
{[%clk 0:02:34.5]} 16. bxc4 {[%clk 0:02:49]} 16... bxc4 {[%clk 0:02:34.2]} 17.
Rb1 {[%clk 0:02:48.7]} 17... Qc7 {[%clk 0:02:33.8]} 18. Nd2 {[%clk 0:02:47.4]}
18... Nb6 {[%clk 0:02:19.5]} 19. Qg4 {[%clk 0:02:46.4]} 19... Bf8 {[%clk
0:01:59.7]} 20. Nxe6 {[%clk 0:02:37.7]} 20... fxe6 {[%clk 0:01:56.9]} 21. Qxe6+
{[%clk 0:02:38.6]} 21... Be7 {[%clk 0:01:50.3]} 22. Qg6+ {[%clk 0:02:36.4]}
22... Kd8 {[%clk 0:01:33.3]} 23. Qxg7 {[%clk 0:02:35.9]} 23... Rf8 {[%clk
0:01:26.1]} 24. Bxh6 {[%clk 0:02:34.6]} 24... Nd7 {[%clk 0:01:22.7]} 25. Qh7
{[%clk 0:02:29]} 25... Ncxe5 {[%clk 0:00:54.2]} 26. dxe5 {[%clk 0:02:27.2]}
26... d4 {[%clk 0:00:54.3]} 27. Rxb7 {[%clk 0:02:23.7]} 27... Qxb7 {[%clk
0:00:52.6]} 28. Be4 {[%clk 0:02:24.3]} 28... Qa7 {[%clk 0:00:48.2]} 29. Bxa8
{[%clk 0:02:22.2]} 29... Qxa8 {[%clk 0:00:48.1]} 30. Bxf8 {[%clk 0:02:20.2]}
30... Nxf8 {[%clk 0:00:47.3]} 31. Qf7 {[%clk 0:02:20.1]} 31... dxc3 {[%clk
0:00:46.2]} 32. Nxc4 {[%clk 0:02:20.2]} 32... c2 {[%clk 0:00:44.7]} 33. Qf5
{[%clk 0:02:13.7]} 33... Qc6 {[%clk 0:00:23.7]} 34. Qxc2 {[%clk 0:02:13.2]}
34... Ne6 {[%clk 0:00:23.8]} 35. Ne3 {[%clk 0:02:11]} 35... Qb7 {[%clk
0:00:20.3]} 36. Rd1+ {[%clk 0:02:10.8]} 36... Ke8 {[%clk 0:00:20.3]} 37. Qg6+
{[%clk 0:02:11.5]} 1-0

[Event "Early-Titled-Tuesday-Blitz-March-19-2024"]
[Site "Chess.com"]
[Date "2024.03.19"]
[Round "6"]
[White "HansOnTwitch"]
[Black "Binary010"]
[Result "1-0"]
[WhiteElo "3081"]
[BlackElo "2839"]
[TimeControl "180+1"]
[EndTime "9:05:00 PDT"]
[Termination "HansOnTwitch won by resignation"]

1. c4 {[%clk 0:03:00.9]} 1... c5 {[%clk 0:02:59.4]} 2. Nc3 {[%clk 0:02:59.5]}
2... Nc6 {[%clk 0:02:59.5]} 3. g3 {[%clk 0:02:59.7]} 3... g6 {[%clk 0:02:59.9]}
4. Bg2 {[%clk 0:03:00.2]} 4... Bg7 {[%clk 0:03:00.5]} 5. Nf3 {[%clk 0:03:00.2]}
5... e5 {[%clk 0:03:00.5]} 6. d3 {[%clk 0:02:58.9]} 6... d6 {[%clk 0:03:00.7]}
7. O-O {[%clk 0:02:56.9]} 7... Nge7 {[%clk 0:03:00.8]} 8. a3 {[%clk 0:02:56.5]}
8... O-O {[%clk 0:03:00.2]} 9. Rb1 {[%clk 0:02:57.1]} 9... a5 {[%clk 0:03:00.4]}
10. Bg5 {[%clk 0:02:52.4]} 10... f6 {[%clk 0:02:59.9]} 11. Bd2 {[%clk
0:02:50.7]} 11... Be6 {[%clk 0:02:58.5]} 12. Qa4 {[%clk 0:02:42.7]} 12... Qd7
{[%clk 0:02:45.4]} 13. Rfc1 {[%clk 0:02:39]} 13... b6 {[%clk 0:02:29.6]} 14. Ne1
{[%clk 0:02:38.7]} 14... d5 {[%clk 0:02:17.8]} 15. cxd5 {[%clk 0:02:34.7]} 15...
Nxd5 {[%clk 0:02:18]} 16. Nc2 {[%clk 0:02:35.1]} 16... Rab8 {[%clk 0:02:11.6]}
17. Ne3 {[%clk 0:02:34.8]} 17... Nde7 {[%clk 0:02:08.4]} 18. h4 {[%clk
0:02:08.7]} 18... Rfc8 {[%clk 0:01:48.6]} 19. h5 {[%clk 0:02:08.4]} 19... Nd4
{[%clk 0:01:43]} 20. Qxd7 {[%clk 0:02:07.6]} 20... Bxd7 {[%clk 0:01:43.9]} 21.
hxg6 {[%clk 0:02:06.8]} 21... hxg6 {[%clk 0:01:43.2]} 22. Nc4 {[%clk 0:02:06.4]}
22... b5 {[%clk 0:01:32.5]} 23. Nd6 {[%clk 0:01:48.2]} 23... b4 {[%clk
0:01:05.1]} 24. Nxc8 {[%clk 0:01:46.6]} 24... Nxc8 {[%clk 0:00:45.8]} 25. Kf1
{[%clk 0:01:28.1]} 25... bxc3 {[%clk 0:00:43.9]} 26. bxc3 {[%clk 0:01:29]} 26...
Rxb1 {[%clk 0:00:39.9]} 27. Rxb1 {[%clk 0:01:29.9]} 27... Nc6 {[%clk 0:00:35.7]}
28. Rb7 {[%clk 0:01:28]} 28... Be8 {[%clk 0:00:34.9]} 29. Bxc6 {[%clk 0:01:27]}
29... Bxc6 {[%clk 0:00:34.5]} 30. Rc7 {[%clk 0:01:27.7]} 1-0